Cogmind - Beta 10.2 @@@ ROGUE MODE // 2021.12.08 @ 02:13:44 // Winter2019/RPGLIKE Player: FontPeg Result: Self-destructed Performance ------------- Evolutions (1) 500 Regions Visited (3) 600 Robots Destroyed (6) 30 Value Destroyed (112) 112 Prototype IDs (0) 0 Alien Tech Used (0) 0 Bonus (0) 0 TOTAL SCORE: 1242 Bonus ------- None Cogmind --------- Core Integrity 464/600 Matter 294/300 Energy 250/250 System Corruption 0% Temperature Cool (0) Movement Flying (117) Ox1 Location -9/Materials Parts ------- > --- POWER (1) -------- Ion Engine > --- PROPULSION (2) --- Flight Unit Flight Unit > --- UTILITY (2) ------ Improved Heat Sink > --- WEAPON (2) ------- Small Laser Rocket Launcher > --- INVENTORY (0) ---- (None) Peak State ------------ > --- POWER ------------ Ion Engine > --- PROPULSION ------- Flight Unit Flight Unit > --- UTILITY ---------- Improved Heat Sink > --- WEAPON ----------- Small Laser Rocket Launcher > --- INVENTORY -------- (None) [Rating: 9] Favorites ----------- Power Ion Engine Engine Ion Engine Propulsion Flight Unit Wheel Wheel Flight Unit Flight Unit Utility Improved Heat Sink Device Improved Heat Sink Weapon Small Laser Energy Gun Small Laser Ballistic Gun Light Assault Rifle Launcher Rocket Launcher Build | -11 -10 -10 -9 ------- Run | Scr Mat Min Mat Slots Evolved 3 | 3 . . . Power . | . . . . Propulsion 1 | 1 . . . Utility 1 | 1 . . . Weapon 1 | 1 . . . Parts Attached 14 | 6 6 2 . Power 1 | 1 . . . Engine 1 | 1 . . . Core . | . . . . Reactor . | . . . . Propulsion 6 | 2 4 . . Treads . | . . . . Leg . | . . . . Wheel 2 | 2 . . . Hover . | . . . . Flight 4 | . 4 . . Utility 1 | . . 1 . Device 1 | . . 1 . Storage . | . . . . Processor . | . . . . Hackware . | . . . . Protection . | . . . . Artifact . | . . . . Weapon 6 | 3 2 1 . Energy Gun 3 | 2 1 . . Energy Cannon . | . . . . Ballistic Gun 2 | 1 1 . . Ballistic Cannon . | . . . . Launcher 1 | . . 1 . Special Weapon . | . . . . Impact Weapon . | . . . . Slashing Weapon . | . . . . Piercing Weapon . | . . . . Special Melee Weapon . | . . . . Unidentified Prototypes . | . . . . Parts Lost . | . . . . Power . | . . . . Propulsion . | . . . . Utility . | . . . . Weapon . | . . . . Highest Loss Streak . | . . . . Average Slot Usage (%) 77 | . 71 80 85 Engine 14 | . 14 14 14 Wheel 2 | . 9 . . Flight 25 | . 18 28 28 Device 6 | . . 9 14 Energy Gun 14 | . 14 14 14 Ballistic Gun 10 | . 14 9 . Launcher 3 | . . 4 14 Naked Turns . | . . . . Heaviest Build 11 | 8 7 11 11 Greatest Support 20 | 20 20 8 8 Greatest Overweight (x) 1 | . 1 1 1 Average Overweight (x) . | . . . 1 Largest Inventory Capacity . | . . . . Average Capacity . | . . . . Most Carried . | . . . . Average Carried . | . . . . Final Capacity . | . . . . Final Carried . | . . . . Class Distribution -------------------- 100% | Mutant Dominant Class ---------------- Mutant | -10/Materials Mutant | -10/Mines Mutant | -9/Materials Resources | -11 -10 -10 -9 ----------- Run | Scr Mat Min Mat Matter Collected 348 | 260 46 42 . Remotely . | . . . . Salvage Created 194 | . 77 117 . Parts 11 | . 7 4 . Haulers Intercepted . | . . . . Recyclers Shooed . | . . . . Parts Field Recycled . | . . . . Retrieved Matter . | . . . . Parts Self-Destructed . | . . . . Prevented . | . . . . Kills | -11 -10 -10 -9 ------- Run | Scr Mat Min Mat Combat Hostiles Destroyed 5 | . 3 2 . Guns 5 | . 3 2 . Classes Destroyed 3 | . 2 1 . Worker 1 | . 1 . . Swarmer 3 | . 3 . . Grunt 2 | . . 2 . Best Kill Streak 3 | . 3 1 . Combat Bots Only 3 | . 3 1 . Max Kills in Single Turn 1 | . 1 1 . Gunslinging . | . . . . Exploded . | . . . . Melee . | . . . . Uniques/NPCs Destroyed . | . . . . Combat | -11 -10 -10 -9 -------- Run | Scr Mat Min Mat Damage Taken 192 | . 68 124 . Core 163 | . 56 107 . Absorbed by Shields . | . . . . Redirected to Core 95 | . 38 57 . Core Remaining (%) 88 | 100 . 77 . Volleys Fired 18 | . 9 9 . Largest 2 | . 2 2 . Hottest 60 | . 60 60 . Shots Fired 34 | . 16 18 . Gun 34 | . 16 18 . Cannon . | . . . . Launcher . | . . . . Special . | . . . . Kinetic 18 | . 9 9 . Thermal 16 | . 7 9 . Explosive . | . . . . Electromagnetic . | . . . . Robot Hit Streak 4 | . 3 4 . Robot Miss Streak 3 | . 2 3 . Penetration Max . | . . . . Secondary Targets . | . . . . Shots Hit Robots 18 | . 6 12 . Core Hits 9 | . 4 5 . Critical Hits . | . . . . Critical Kills . | . . . . Critical Parts Destroyed . | . . . . Melee Attacks . | . . . . Impact . | . . . . Slashing . | . . . . Piercing . | . . . . Sneak Attacks . | . . . . Combat Hostiles . | . . . . Follow-up Attacks . | . . . . Damage Inflicted 203 | . 70 133 . Guns 193 | . 70 123 . Cannons . | . . . . Explosions . | . . . . Melee . | . . . . Ramming 10 | . . 10 . Kinetic 56 | . 13 43 . Thermal 137 | . 57 80 . Explosive . | . . . . Electromagnetic . | . . . . Impact . | . . . . Slashing . | . . . . Piercing . | . . . . Highest Corruption . | . . . . Average Corruption . | . . . . Corruption Purged . | . . . . Overload Shots . | . . . . Overflow Damage . | . . . . Projectiles . | . . . . Explosions . | . . . . Melee . | . . . . Knockbacks . | . . . . Impact . | . . . . Kinetic . | . . . . Secondary . | . . . . Self-Inflicted Damage 5 | . . 5 . Shots . | . . . . Rammed 1 | . . 1 . Targets Rammed 1 | . . 1 . Kicked . | . . . . Crushed . | . . . . Highest Temperature 111 | . 40 111 . Average Temperature 40 | . 19 61 . Received Heat Transfer 69 | . 6 63 . Siege Activations . | . . . . Robots Corrupted . | . . . . Combat Hostiles . | . . . . Parts Fried . | . . . . Impact Corruptions . | . . . . Robots Melted . | . . . . Combat Hostiles . | . . . . Parts Melted . | . . . . Heat Transferred 300 | . 125 175 . Parts Sabotaged . | . . . . Parts Stolen . | . . . . Parts Stripped . | . . . . Power Chain Reactions . | . . . . Missiles Intercepted . | . . . . Alert | -11 -10 -10 -9 ------- Run | Scr Mat Min Mat Peak Influence 128 | . 128 89 34 Initial 34 | . . 9 34 Average 51 | . 66 53 34 Maximum Alert Level . | . . . . Low Security (%) 100 | 100 100 100 100 Level 1 . | . . . . Level 2 . | . . . . Level 3 . | . . . . Level 4 . | . . . . Level 5 . | . . . . High Security . | . . . . Max Security . | . . . . Squads Dispatched 1 | . 1 . . Investigation 1 | . 1 . . Extermination . | . . . . Reinforcement . | . . . . Assault . | . . . . Garrison . | . . . . Intercept . | . . . . Construction Impeded . | . . . . Haulers Reinforced . | . . . . Stealth | -11 -10 -10 -9 --------- Run | Scr Mat Min Mat Distress Signals . | . . . . Communications Jammed . | . . . . Distress Signals . | . . . . Times Spotted 13 | . 10 3 . Peak Tracking Total 3 | . 3 2 . Tactical Retreats 2 | . 1 1 . Traps | -11 -10 -10 -9 ------- Run | Scr Mat Min Mat Traps Triggered 1 | . 1 . . Indirectly . | . . . . Trap Hack Attempts . | . . . . Triggered . | . . . . Disarmed . | . . . . Reprogrammed . | . . . . Reused . | . . . . Traps Extracted . | . . . . Installed . | . . . . Triggered . | . . . . Machines | -11 -10 -10 -9 ---------- Run | Scr Mat Min Mat Machines Disabled . | . . . . Max in Single Turn . | . . . . Machines Sabotaged . | . . . . Garrisons Compromised . | . . . . Overloaded Fab Kills . | . . . . Fab Network Shutdowns . | . . . . Hacking | -11 -10 -10 -9 --------- Run | Scr Mat Min Mat Machines Accessed 4 | . 4 . . Terminals 4 | . 4 . . Fabricators . | . . . . Repair Stations . | . . . . Recycling Units . | . . . . Scanalyzers . | . . . . Garrison Access . | . . . . Total Hacks 14 | . 14 . . Successful 10 | . 10 . . Failed 4 | . 4 . . Catastrophic . | . . . . Database Lockouts . | . . . . Manual 4 | . 4 . . Terminals 14 | . 14 . . Fabricators . | . . . . Repair Stations . | . . . . Recycling Units . | . . . . Scanalyzers . | . . . . Garrison Access . | . . . . Terminal Hacks 8 | . 8 . . Part Schematic 1 | . 1 . . Branch Access Points 1 | . 1 . . Machine Index 1 | . 1 . . Alert Level 1 | . 1 . . Unreport Threat 1 | . 1 . . Locate Traps 1 | . 1 . . Transport Status 1 | . 1 . . Recall Assault 1 | . 1 . . Fabricator Hacks . | . . . . Repair Station Hacks . | . . . . Recycling Unit Hacks . | . . . . Scanalyzer . | . . . . Garrison Access Hacks . | . . . . Unauthorized Hacks 2 | . 2 . . Terminals 2 | . 2 . . Assimilate 1 | . 1 . . Botnet 1 | . 1 . . Fabricators . | . . . . Repair Stations . | . . . . Recycling Units . | . . . . Scanalyzers . | . . . . Garrison Access . | . . . . Data Cores Recovered . | . . . . Used . | . . . . Hacking Detections 4 | . 4 . . Full Trace Events 2 | . 2 . . Feedback Events . | . . . . Feedback Blocked . | . . . . Robot Schematics Acquired . | . . . . Robots Built . | . . . . Matter . | . . . . Time . | . . . . Total Robot Build Rating . | . . . . Part Schematics Acquired 1 | . 1 . . Parts Built . | . . . . Matter . | . . . . Time . | . . . . Total Part Build Rating . | . . . . Parts Repaired . | . . . . Time . | . . . . Parts Recycled . | . . . . Recycled Matter . | . . . . Retrieved Matter . | . . . . Retrieved Components . | . . . . Parts Scanalyzed . | . . . . Part Schematics Acquired . | . . . . Parts Damaged . | . . . . Bothacking | -11 -10 -10 -9 ------------ Run | Scr Mat Min Mat Used RIF Installer . | . . . . Robots Hacked . | . . . . Non-combat . | . . . . Combat . | . . . . Robot Hacks Applied . | . . . . Relay Couplers Released . | . . . . Robots Rewired . | . . . . Allies Hacked . | . . . . Hacks Repelled . | . . . . Allies | -11 -10 -10 -9 -------- Run | Scr Mat Min Mat Total Allies . | . . . . Largest Group . | . . . . Highest-Rated Group . | . . . . Highest-Rated Ally . | . . . . Total Orders . | . . . . Ally Attacks . | . . . . Total Damage . | . . . . Kills . | . . . . Allies Corrupted . | . . . . Allies Melted . | . . . . Intel | -11 -10 -10 -9 ------- Run | Scr Mat Min Mat Robot Analysis Total . | . . . . Derelict Logs Recovered . | . . . . Drone Launches . | . . . . Drone Recoveries . | . . . . Exploration | -11 -10 -10 -9 ------------- Run | Scr Mat Min Mat Turns Passed 379 | 39 109 229 2 Spaces Moved 540 | 38 157 344 1 Core 1 | 1 . . . Treads . | . . . . Legs . | . . . . Wheels 54 | 37 17 . . Hover . | . . . . Flight 485 | . 140 344 1 Fastest Speed 37 | 50 37 37 117 Average Speed 51 | 79 44 51 117 Slowest Speed 125 | 80 125 117 117 Overloaded Moves . | . . . . Propulsion Burnouts . | . . . . Robots Hopped 2 | . . 2 . Cave-ins Triggered . | . . . . Exploration Rate (%) 26 | 3 38 60 3 Regions Visited 3 Branch Regions 1 Pre-discovered Areas . | . . . . Known Exits Taken 1 | . 1 . . Unknown Exits Taken 2 | 1 . 1 . Scrap Searched . | . . . . Spaces Dug . | . . . . Terrain Destroyed . | . . . . Melee . | . . . . Projectile . | . . . . AOE . | . . . . Terrain Rammed . | . . . . Walls Destroyed . | . . . . Machines Disabled . | . . . . Actions | -11 -10 -10 -9 --------- Run | Scr Mat Min Mat Total 604 | 44 181 378 1 Wait 28 | . 4 24 . Move 533 | 37 156 339 1 Hop 2 | . . 2 . Pick Up . | . . . . Fast Attach 12 | 6 4 2 . Attach . | . . . . Detach . | . . . . Swap 2 | . 2 . . Drop 6 | 1 4 1 . Fire 18 | . 9 9 . Melee . | . . . . Ram 1 | . . 1 . Kick . | . . . . Crush . | . . . . Escape Stasis . | . . . . Rewire . | . . . . Trap . | . . . . Miscellaneous 2 | . 2 . . Route ------- -11/Scrapyard -10/Materials (discovered 3 exits: [*Mat] / *Min x2) -10/Mines -9/Materials History --------- Turn | Location | Event 1 | -11/Scrapyard | Upgraded with Propulsion slot (x1) 1 | -11/Scrapyard | Upgraded with Utility slot (x1) 1 | -11/Scrapyard | Upgraded with Weapon slot (x1) 27 | -11/Scrapyard | Discovered new exit (range 16) 40 | -11/Scrapyard | Entered Materials 105 | -10/Materials | Identified exit to Mines 123 | -10/Materials | Discovered new exit (range 13) 149 | -10/Materials | Entered Mines 175 | -10/Mines | Discovered new exit (range 5) 302 | -10/Mines | Received a Rocket Launcher from a helpful Derelict 326 | -10/Mines | Build established: Mutant 378 | -10/Mines | Entered Materials 380 | -9/Materials | Reached level 2 380 | -9/Materials | Self-destructed Last Messages --------------- 00284_ Acquired 4 matter. 00296_ A derelict emerges from the shadows. 00297_ RT-C9K(g): "Some of my friends down here think you need a mining laser when you travel the depths." 00298_ RT-C9K(g): "Pshh... whatever." 00299_ RT-C9K(g): "Everyone knows a good old rocket launcher goes a long way." 00300_ RT-C9K(g): "Need to get rid of a swarm? Done. Need a big hole in the wall? Done." 00301_ RT-C9K(g): "Need a small hole in the wall? Leave that to the mining laser wimps, I say!" 00302_ RT-C9K(g): "Would you like a rocket launcher? I know I would if I were you, so I'm going to lend you mine." 00302_ RT-C9K(g) slips back into the shadows. 00305_ Dropped Lgt. Assault Rifle. 00305_ Acquired Rocket Launcher. 00331_ Slammed into T-07 Excavator. LOCATION=UNKNOWN GOAL=ESCAPE 00380_ Reached level 2. Map ----- +----------------------------------------------------+ | ????????????????????????????????????????? | | ????????????????????????????????????????? | | ????????????????????????????????????????? | | ????????????????????????????????????????? | | ????????????????????????????????????????? | | ????????????????????????????????????????? | | ????????????????????????????????????????? | | ????????????????????????????????????????? | | ????????????????????????????????????????? | | ????????????????????????????????????????? | | ????????????????????????????????????????? | | ????????????????????????????????????????? | | ????????????????????????????????????????? | | ????????????????????????????????????????? | | ????????????????????????????????????????? | | ????????????????????????????????????????? | | ?????????????????????#??????????????????? | | ???????????????????? #??????????????????? | | ???????????????????? #??????????????????? | | ??????????????????? +??????????????????? | | ??????????????????? #??????????????????? | | ?????????????????? #??????????????????? | | ?????????????##### #??????????????????? | | ?????????????# ##+#???????????????? | | ?????????????# #???????????????? | | ?????????????# @ #???????????????? | | ?????????????# #???????????????? | | ?????????????# ??????????? | | ???????????? ?????????? | | ??????????? ! ?????????? | | ?????????? ### ###+??????????? | | ????????? ![ #??% %#?????????????? | | ????????# [[ #??? %#?????????????? | | ????????# [ #????%%%##?????????????? | | ????????# #????####??????????????? | | ????????# #??????????????????????? | | ????????# """ #??????????????????????? | | ????????# """ ???????????????????????? | | ????????? ??" ???????????????????????? | | ??????????????? ???????????????????????? | | ??????????????? ???????????????????????? | | ????????????????????????????????????????? | | ????????????????????????????????????????? | | ????????????????????????????????????????? | | ????????????????????????????????????????? | | ????????????????????????????????????????? | | ????????????????????????????????????????? | | ????????????????????????????????????????? | | ????????????????????????????????????????? | | ????????????????????????????????????????? | +----------------------------------------------------+ Best States ------------- Heat Dissipation 39 Energy Generation 10 Energy Capacity 250 Matter Stores 300 Matter Capacity 300 Sight Range 16 Terrain Scan Density 10 Evasion (%) 62 Offensive Hacking 15 Item Schematics ----------------- Propulsion Shielding | -10/Materials | Hacked Robot Schematics ------------------ None Fabricated ------------ Nothing Alien Tech Used ----------------- None Achievements -------------- None Challenges ------------ None RPGLIKE | -11 -10 -10 -9 --------- Run | Scr Mat Min Mat Levels Raised 1 | . . . 1 XP Earned 5915 | 3000 590 825 1500 XP Spent 2700 | 2700 . . . Upgrades 6 | 6 . . . Propulsion Slot 1 | 1 . . . Utility Slot 1 | 1 . . . Weapon Slot 1 | 1 . . . Hack Attack % 3 | 3 . . . Protomatter Created 9 | . 9 . . Integrity Restored 27 | . 27 . . Core 27 | . 27 . . Protomatter Decayed . | . . . . Game ------ Seed LightSurveybotConverter Manual? 0 Play Time 00:05:45 Cumulative 93.9 hours Start 2021.12.08 @ 02:08:13 End 2021.12.08 @ 02:13:44 Sessions 1 Manual Loads 0 Difficulty Rogue Special Mode Winter2019/RPGLIKE Game No. 133 Rogue 133 Adventurer 0 Explorer 0 Win Type - Total 1 Types 1/0/0/0/0/0/0/0/0 Lore% 43 Gallery% 55 Achievement% 44 Wizard Run 0 Options --------- ASCII 0 Keyboard 0 Movement Mouse Keybinds 0 Fullscreen 2 Font 18/X11 Map View 76x50 Tactical HUD 1 Map Filters NONE Filters NONE Steam 1 RUN: de337ec8-e2d5-4e4a-8fc1-aec44b49f656